Cogmind - Beta 10 @@@ ROGUE MODE // 2020.09.12 @ 10:34:47 Player: Torako Result: Self-destructed Performance ------------- Evolutions (4) 2000 Regions Visited (10) 2000 Robots Destroyed (115) 575 Value Destroyed (4477) 4477 Prototype IDs (28) 560 Alien Tech Used (0) 0 Bonus (1261) 1261 TOTAL SCORE: 10873 Bonus ------- High Alert Combat Kills 297 Entered Garrisons 200 Used RIF Installer 500 Aligned with FarCom 300 Friendly Fire -36 Cogmind --------- Core Integrity 850/850 Matter 300/300 Energy 280/280 System Corruption 0% Temperature Cool (0) Movement Rolling (130) Ox3 Location -6/Factory Parts ------- > --- POWER (1) -------- Heavy Ion Engine > --- PROPULSION (2) --- Armored Huge Wheel > --- UTILITY (8) ------ Coolant Injector Large Storage Unit Large Storage Unit High-capacity Storage Unit Advanced Terrain Scan Processor System Backup Module > --- WEAPON (4) ------- Shock Rifle Shock Rifle Heavy Ion Cannon Flak Gun > --- INVENTORY (24) --- Cooled Ion Engine Armored Huge Wheel Large Matter Pod (150) Experimental Sensor Array Advanced Terrain Scanner Hardened Medium Armor Plating Improved Medium Armor Plating Relay Coupler [NC] (28) Relay Coupler [NC] (32) Relay Coupler [Swarmer] (34) Relay Coupler [Duelist] (31) Relay Coupler [Sentry] (23) Relay Coupler [Sentry] (23) Relay Coupler [Demolisher] (24) Relay Coupler [Specialist] (22) Relay Coupler [Behemoth] (11) Electrolaser Electrolaser Electrolaser Guided Plasma Cannon EMP Blaster Heavy Missile Launcher Datajack Peak State ------------ > --- POWER ------------ Heavy Ion Engine > --- PROPULSION ------- Armored Huge Wheel > --- UTILITY ---------- Coolant Injector Large Storage Unit Large Storage Unit High-capacity Storage Unit Advanced Terrain Scan Processor System Backup Module > --- WEAPON ----------- Electrolaser Electrolaser Heavy Ion Cannon Flak Gun > --- INVENTORY -------- Cooled Ion Engine Armored Huge Wheel Large Matter Pod Experimental Sensor Array Advanced Terrain Scanner Hardened Medium Armor Plating Improved Medium Armor Plating Relay Coupler [NC] Relay Coupler [NC] Relay Coupler [Swarmer] Relay Coupler [Duelist] Relay Coupler [Sentry] Relay Coupler [Sentry] Relay Coupler [Demolisher] Relay Coupler [Specialist] Relay Coupler [Behemoth] Arc Projector Electrolaser Electrolaser Guided Plasma Cannon EMP Blaster Heavy Missile Launcher Datajack [Rating: 48] Favorites ----------- Power Cooled Ion Engine Engine Cooled Ion Engine Power Core Light Nuclear Core Propulsion Armored Wheel Treads Light Treads Leg Aluminum Leg Wheel Armored Wheel Utility Large Storage Unit Device Coolant Injector Storage Large Storage Unit Processor Improved Targeting Computer Hackware Relay Coupler [NC] Protection Hardened Medium Armor Plating Weapon Autogun Energy Gun Particle Gun Energy Cannon Guided Plasma Cannon Ballistic Gun Autogun Launcher EMP Blaster Special Weapon Plasma Cutter Special Melee Weapon Datajack Build | -11 -10 -10 -9 -9 -9 -8 -8 -8 -7 -6 ------- Run | Scr Mat Min Mat Min Exi Min Mat Gar Fac Fac Slots Evolved 8 | . . . 2 . . . 2 . 2 2 Power . | . . . . . . . . . . . Propulsion . | . . . . . . . . . . . Utility 6 | . . . 1 . . . 2 . 1 2 Weapon 2 | . . . 1 . . . . . 1 . Parts Attached 96 | 7 7 6 20 2 2 . 14 12 26 . Power 9 | 1 1 1 5 . . . . 1 . . Engine 7 | 1 1 . 4 . . . . 1 . . Core 2 | . . 1 1 . . . . . . . Reactor . | . . . . . . . . . . . Propulsion 11 | 2 1 2 4 . . . 1 . 1 . Treads 4 | . . 2 2 . . . . . . . Leg 3 | 2 1 . . . . . . . . . Wheel 4 | . . . 2 . . . 1 . 1 . Hover . | . . . . . . . . . . . Flight . | . . . . . . . . . . . Utility 28 | 1 2 . 2 . . . 8 1 14 . Device 10 | . . . . . . . 4 . 6 . Storage 6 | 1 2 . 1 . . . 1 1 . . Processor 3 | . . . 1 . . . . . 2 . Hackware 2 | . . . . . . . . . 2 . Protection 7 | . . . . . . . 3 . 4 . Artifact . | . . . . . . . . . . . Weapon 48 | 3 3 3 9 2 2 . 5 10 11 . Energy Gun 18 | 1 3 2 2 . . . . 4 6 . Energy Cannon 8 | . . . 1 1 1 . 2 2 1 . Ballistic Gun 17 | 2 . 1 6 1 1 . 3 1 2 . Ballistic Cannon . | . . . . . . . . . . . Launcher 1 | . . . . . . . . 1 . . Special Weapon 1 | . . . . . . . . 1 . . Impact Weapon . | . . . . . . . . . . . Slashing Weapon . | . . . . . . . . . . . Piercing Weapon . | . . . . . . . . . . . Special Melee Weapon 3 | . . . . . . . . 1 2 . Unidentified Prototypes 5 | . . . 5 . . . . . . . Parts Lost 20 | . 2 6 . . . . . 8 4 . Power 2 | . . 1 . . . . . 1 . . Propulsion 3 | . . 2 . . . . . . 1 . Utility . | . . . . . . . . . . . Weapon 15 | . 2 3 . . . . . 7 3 . Highest Loss Streak 3 | . 2 3 . . . . . 2 3 . Average Slot Usage (%) 95 | . 99 98 99 100 100 100 95 88 91 . Engine 8 | . 14 2 7 11 11 11 9 9 7 . Core 1 | . . 11 3 . . . . . . . Treads 4 | . . 17 13 . . . . . . . Leg 2 | . 28 10 . . . . . . . . Wheel 9 | . . . 8 22 22 22 14 9 7 . Device 3 | . . . . . . . 8 6 8 . Storage 24 | . 27 28 22 22 22 22 20 29 24 . Processor 8 | . . . 10 11 11 11 9 9 8 . Energy Gun 5 | . 6 14 1 . . . . 9 12 . Energy Cannon 4 | . . . 2 11 9 11 8 6 1 . Ballistic Gun 17 | . 21 13 28 22 23 22 18 5 11 . Naked Turns . | . . . . . . . . . . . Heaviest Build 107 | 11 43 43 66 66 72 72 89 98 107 . Greatest Support 40 | 20 20 40 40 24 24 24 28 28 28 . Greatest Overweight (x) 5 | 2 2 4 5 2 2 2 3 3 3 . Average Overweight (x) 2 | . 1 1 2 2 2 2 2 2 2 . Largest Inventory Capacity 30 | 6 16 16 18 18 18 18 24 30 30 . Average Capacity 19 | 4 15 16 16 18 18 18 19 25 25 . Most Carried 30 | 4 9 9 18 18 18 18 20 30 30 . Average Carried 17 | 2 5 6 14 17 18 17 17 22 24 . Final Capacity 30 | 6 16 16 18 18 18 18 24 30 24 24 Final Carried 30 | 4 9 5 18 18 18 17 20 30 24 24 Class Distribution -------------------- 32% | Mutant 31% | Gunner 16% | Bothacker-Skirmisher 6% | Hauler-Skirmisher 5% | Bothacker-Assassin 5% | Bothacker-Mutant 3% | Hauler-Mutant Dominant Class ---------------- Mutant | -10/Materials Mutant | -10/Mines Gunner | -9/Materials Gunner | -9/Mines Mutant | -9/Exiles Mutant | -8/Mines Mutant | -8/Materials Bothacker-Skirmisher | -8/Garrison Bothacker-Skirmisher | -7/Factory Bothacker-Skirmisher | -6/Factory Resources | -11 -10 -10 -9 -9 -9 -8 -8 -8 -7 -6 ----------- Run | Scr Mat Min Mat Min Exi Min Mat Gar Fac Fac Matter Collected 2715 | 256 326 126 953 10 . 62 159 269 554 . Remotely . | . . . . . . . . . . . Salvage Created 4905 | . 417 279 1653 92 . 387 452 1006 619 . Parts 270 | . 31 17 103 5 . 22 21 47 24 . Haulers Intercepted 5 | . . . 5 . . . . . . . Recyclers Shooed 2 | . . 1 1 . . . . . . . Parts Field Recycled . | . . . . . . . . . . . Retrieved Matter . | . . . . . . . . . . . Parts Self-Destructed . | . . . . . . . . . . . Prevented . | . . . . . . . . . . . Kills | -11 -10 -10 -9 -9 -9 -8 -8 -8 -7 -6 ------- Run | Scr Mat Min Mat Min Exi Min Mat Gar Fac Fac Combat Hostiles Destroyed 107 | . 14 7 33 2 . 12 9 20 10 . Guns 66 | . 14 7 27 . . . . 9 9 . Cannons 39 | . . . 6 2 . 12 9 9 1 . AOE 1 | . . . . . . . . 1 . . Classes Destroyed 10 | . 2 1 3 1 . 1 . . 2 . Builder 1 | . . . . . . . . . 1 . Hauler 5 | . . . 5 . . . . . . . Recycler 1 | . . 1 . . . . . . . . Operator 1 | . . . 1 . . . . . . . Swarmer 22 | . 6 3 4 . . 6 . 3 . . Grunt 62 | . 8 4 23 1 . 4 8 12 2 . Brawler 3 | . . . . 1 . 1 . . 1 . Duelist 1 | . . . . . . 1 . . . . Sentry 16 | . . . 6 . . . 1 5 4 . Programmer 3 | . . . . . . . . . 3 . Best Kill Streak 9 | . 5 3 9 2 . 3 3 5 3 . Combat Bots Only 8 | . 5 3 8 2 . 3 3 5 3 . Max Kills in Single Turn 2 | . 1 1 2 1 . 1 1 2 2 . Gunslinging . | . . . . . . . . . . . Exploded 1 | . . . . . . . . 1 . . Melee . | . . . . . . . . . . . Uniques/NPCs Destroyed . | . . . . . . . . . . . Combat | -11 -10 -10 -9 -9 -9 -8 -8 -8 -7 -6 -------- Run | Scr Mat Min Mat Min Exi Min Mat Gar Fac Fac Damage Taken 3938 | . 539 420 742 10 . 49 112 1031 1035 . Core 498 | . 72 60 185 . . 18 . 90 73 . Absorbed by Shields . | . . . . . . . . . . . Core Remaining (%) 73 | 100 . 47 . . . 49 . 83 89 . Volleys Fired 324 | . 55 33 78 4 . 20 29 73 32 . Largest 4 | . 2 2 3 3 . 1 1 3 4 . Hottest 219 | . 70 80 114 114 . 120 120 175 219 . Shots Fired 685 | . 107 62 224 12 . 20 28 129 103 . Gun 536 | . 107 62 202 8 . . . 64 93 . Cannon 143 | . . . 22 4 . 20 28 59 10 . Launcher 3 | . . . . . . . . 3 . . Special 3 | . . . . . . . . 3 . . Kinetic 398 | . 88 29 202 8 . . . 22 49 . Thermal 251 | . 19 33 22 4 . 20 28 79 46 . Explosive . | . . . . . . . . . . . Electromagnetic 36 | . . . . . . . . 28 8 . Robot Hit Streak 25 | . 12 19 25 6 . 8 15 25 7 . Robot Miss Streak 4 | . 4 3 3 1 . . . 2 4 . Penetration Max . | . . . . . . . . . . . Secondary Targets 5 | . 1 . 1 . . . . 1 2 . Max Gunslinging Chain 1 | . 1 . 1 . . . . 1 1 . Shots Hit Robots 439 | . 67 44 151 6 . 5 7 85 74 . Core Hits 196 | . 24 15 55 3 . 13 9 40 37 . Critical Hits 8 | . . . 7 . . . . 1 . . Critical Kills 5 | . . . 4 . . . . 1 . . Critical Parts Destroyed 3 | . . . 3 . . . . . . . Melee Attacks 8 | . . . . . . . . . 8 . Impact . | . . . . . . . . . . . Slashing . | . . . . . . . . . . . Piercing . | . . . . . . . . . . . Sneak Attacks 8 | . . . . . . . . . 8 . Combat Hostiles . | . . . . . . . . . . . Follow-up Attacks . | . . . . . . . . . . . Damage Inflicted 8404 | . 876 469 2412 113 . 752 795 1918 1069 . Guns 5148 | . 870 469 2056 68 . . . 678 1007 . Cannons 3100 | . . . 336 45 . 752 795 1110 62 . Explosions 118 | . . . . . . . . 118 . . Melee . | . . . . . . . . . . . Ramming 26 | . 6 . 20 . . . . . . . Kinetic 3659 | . 687 167 2056 68 . . . 190 491 . Thermal 4253 | . 183 302 336 45 . 752 795 1348 492 . Explosive . | . . . . . . . . . . . Electromagnetic 466 | . . . . . . . . 380 86 . Impact . | . . . . . . . . . . . Slashing . | . . . . . . . . . . . Piercing . | . . . . . . . . . . . Highest Corruption 10 | . 2 2 2 2 2 2 10 10 3 . Average Corruption 4 | . 2 2 2 2 2 2 3 10 2 . Corruption Purged 2 | . . . . . . . . . 2 . Effects 92 | . 2 7 6 3 . 8 5 56 5 . Message Errors 10 | . . 2 1 1 . . . 5 1 . Matter Fused 18 | . . . . . . . 2 15 1 . Heat Flow Errors 12 | . 1 . 2 . . 5 . 3 1 . Energy Discharges 4 | . 1 2 . . . . . 1 . . Data Loss (minor) 11 | . . . 1 1 . 2 . 7 . . Data Loss (major) 5 | . . . . . . . . 5 . . Alerts 1 | . . . . . . . 1 . . . Misdirections 5 | . . . . . . . . 5 . . Targeting Errors 18 | . . 3 2 1 . 1 1 9 1 . Weapon Failures 8 | . . . . . . . 1 6 1 . Overload Shots . | . . . . . . . . . . . Overflow Damage 82 | . . . . . . 28 . 54 . . Projectiles 82 | . . . . . . 28 . 54 . . Explosions . | . . . . . . . . . . . Melee . | . . . . . . . . . . . Knockbacks . | . . . . . . . . . . . Impact . | . . . . . . . . . . . Kinetic . | . . . . . . . . . . . Secondary . | . . . . . . . . . . . Self-Inflicted Damage 54 | . 3 . . . . . . 51 . . Shots 1 | . . . . . . . . 1 . . Rammed 7 | . 1 . 6 . . . . . . . Targets Rammed 7 | . 1 . 6 . . . . . . . Kicked . | . . . . . . . . . . . Crushed . | . . . . . . . . . . . Highest Temperature 431 | . 132 182 431 142 . 368 197 199 419 . Average Temperature 102 | . 42 61 87 66 . 150 110 101 152 . Received Heat Transfer 1482 | . 156 198 258 6 . 9 72 459 324 . Effects 8 | . . . 4 . . 3 . . 1 . Shutdowns 2 | . . . 1 . . 1 . . . . Interference 6 | . . . 3 . . 2 . . 1 . Siege Activations . | . . . . . . . . . . . Robots Corrupted . | . . . . . . . . . . . Combat Hostiles . | . . . . . . . . . . . Parts Fried 3 | . . . . . . . . 2 1 . Impact Corruptions . | . . . . . . . . . . . Robots Melted 1 | . . . . . . . . 1 . . Combat Hostiles 1 | . . . . . . . . 1 . . Parts Melted 15 | . . . 1 . . 1 5 4 4 . Heat Transferred 8247 | . 494 709 555 74 . 1600 1760 2056 999 . Parts Sabotaged . | . . . . . . . . . . . Parts Stolen . | . . . . . . . . . . . Parts Stripped . | . . . . . . . . . . . Power Chain Reactions 2 | . . . . . . . . 2 . . Missiles Intercepted . | . . . . . . . . . . . Alert | -11 -10 -10 -9 -9 -9 -8 -8 -8 -7 -6 ------- Run | Scr Mat Min Mat Min Exi Min Mat Gar Fac Fac Peak Influence 843 | . 336 188 634 278 . 280 257 843 548 . Initial 442 | . . 73 . 222 . . 31 167 442 88 Average 296 | . 206 108 296 248 . 96 140 554 305 . Maximum Alert Level 3 | . 1 . 2 1 . 1 1 3 2 . Low Security (%) 39 | 100 54 100 30 . . 81 69 4 35 . Level 1 29 | . 45 . 40 100 . 18 30 10 28 . Level 2 27 | . . . 28 . . . . 69 35 . Level 3 2 | . . . . . . . . 14 . . Level 4 . | . . . . . . . . . . . Level 5 . | . . . . . . . . . . . High Security . | . . . . . . . . . . . Max Security . | . . . . . . . . . . . Squads Dispatched 21 | . 3 . 7 . . . 3 . 8 . Investigation 11 | . 1 . 4 . . . 3 . 3 . Extermination 3 | . . . . . . . . . 3 . Reinforcement 7 | . 2 . 3 . . . . . 2 . Assault . | . . . . . . . . . . . Garrison . | . . . . . . . . . . . Intercept . | . . . . . . . . . . . Construction Impeded . | . . . . . . . . . . . Haulers Reinforced . | . . . . . . . . . . . Stealth | -11 -10 -10 -9 -9 -9 -8 -8 -8 -7 -6 --------- Run | Scr Mat Min Mat Min Exi Min Mat Gar Fac Fac Distress Signals 5 | . 2 . 3 . . . . . . . Communications Jammed . | . . . . . . . . . . . Distress Signals . | . . . . . . . . . . . Times Spotted 123 | . 26 7 41 2 . 8 4 23 12 . Peak Tracking Total 7 | . 7 3 7 2 . 3 3 4 3 . Tactical Retreats 6 | . 1 . 1 . . . . 4 . . Traps | -11 -10 -10 -9 -9 -9 -8 -8 -8 -7 -6 ------- Run | Scr Mat Min Mat Min Exi Min Mat Gar Fac Fac Traps Triggered 20 | . 1 . 4 . . . 6 6 3 . Indirectly . | . . . . . . . . . . . Trap Hack Attempts 2 | . . . . . . . . . 2 . Triggered . | . . . . . . . . . . . Disarmed 1 | . . . . . . . . . 1 . Reprogrammed . | . . . . . . . . . . . Reused . | . . . . . . . . . . . Traps Extracted . | . . . . . . . . . . . Installed . | . . . . . . . . . . . Triggered . | . . . . . . . . . . . Machines | -11 -10 -10 -9 -9 -9 -8 -8 -8 -7 -6 ---------- Run | Scr Mat Min Mat Min Exi Min Mat Gar Fac Fac Machines Disabled 3 | . . . . . . . . 3 . . Max in Single Turn 1 | . . . . . . . . 1 . . Garrison Relay 3 | . . . . . . . . 3 . . Machines Sabotaged . | . . . . . . . . . . . Garrisons Compromised . | . . . . . . . . . . . Overloaded Fab Kills . | . . . . . . . . . . . Fab Network Shutdowns . | . . . . . . . . . . . Hacking | -11 -10 -10 -9 -9 -9 -8 -8 -8 -7 -6 --------- Run | Scr Mat Min Mat Min Exi Min Mat Gar Fac Fac Machines Accessed 23 | . 3 . 7 . 3 . 5 . 5 . Terminals 15 | . 2 . 6 . . . 4 . 3 . Fabricators . | . . . . . . . . . . . Repair Stations . | . . . . . . . . . . . Recycling Units 4 | . 1 . 1 . . . . . 2 . Scanalyzers . | . . . . . . . . . . . Garrison Access 1 | . . . . . . . 1 . . . Total Hacks 72 | . 12 . 22 . 14 . 14 . 10 . Successful 36 | . 7 . 9 . 14 . 2 . 4 . Failed 35 | . 4 . 13 . . . 12 . 6 . Catastrophic 4 | . . . 2 . . . 1 . 1 . Database Lockouts 1 | . 1 . . . . . . . . . Manual 46 | . 9 . 18 . 1 . 12 . 6 . Terminals 49 | . 9 . 20 . . . 12 . 8 . Fabricators . | . . . . . . . . . . . Repair Stations . | . . . . . . . . . . . Recycling Units 7 | . 3 . 2 . . . . . 2 . Scanalyzers . | . . . . . . . . . . . Garrison Access 2 | . . . . . . . 2 . . . Terminal Hacks 23 | . 3 . 5 . 14 . . . 1 . Record 13 | . . . . . 13 . . . . . Robot Analysis 7 | . 3 . 4 . . . . . . . Investigation Status 1 | . . . . . . . . . 1 . Hauler Manifests 1 | . . . 1 . . . . . . . EX-Prototype ID Bank 1 | . . . . . 1 . . . . . Fabricator Hacks . | . . . . . . . . . . . Repair Station Hacks . | . . . . . . . . . . . Recycling Unit Hacks 6 | . 2 . 2 . . . . . 2 . Report Inventory 4 | . 1 . 1 . . . . . 2 . Retrieve Matter 1 | . . . 1 . . . . . . . Retrieve Components 1 | . 1 . . . . . . . . . Scanalyzer . | . . . . . . . . . . . Garrison Access Hacks 1 | . . . . . . . 1 . . . Unlock Access 1 | . . . . . . . 1 . . . Unauthorized Hacks 6 | . 2 . 2 . . . 1 . 1 . Terminals 6 | . 2 . 2 . . . 1 . 1 . Botnet 6 | . 2 . 2 . . . 1 . 1 . Fabricators . | . . . . . . . . . . . Repair Stations . | . . . . . . . . . . . Recycling Units . | . . . . . . . . . . . Scanalyzers . | . . . . . . . . . . . Garrison Access . | . . . . . . . . . . . Data Cores Recovered . | . . . . . . . . . . . Used . | . . . . . . . . . . . Hacking Detections 18 | . 3 . 6 . . . 5 . 4 . Full Trace Events 8 | . 1 . 2 . . . 3 . 2 . Feedback Events 2 | . . . . . . . 2 . . . Corruption 2 | . . . . . . . 2 . . . Feedback Blocked . | . . . . . . . . . . . Robot Schematics Acquired . | . . . . . . . . . . . Robots Built . | . . . . . . . . . . . Matter . | . . . . . . . . . . . Time . | . . . . . . . . . . . Total Robot Build Rating . | . . . . . . . . . . . Part Schematics Acquired . | . . . . . . . . . . . Parts Built . | . . . . . . . . . . . Matter . | . . . . . . . . . . . Time . | . . . . . . . . . . . Total Part Build Rating . | . . . . . . . . . . . Parts Repaired . | . . . . . . . . . . . Time . | . . . . . . . . . . . Parts Recycled . | . . . . . . . . . . . Recycled Matter . | . . . . . . . . . . . Retrieved Matter 173 | . . . 173 . . . . . . . Retrieved Components 5 | . 5 . . . . . . . . . Parts Scanalyzed . | . . . . . . . . . . . Part Schematics Acquired . | . . . . . . . . . . . Parts Damaged . | . . . . . . . . . . . Bothacking | -11 -10 -10 -9 -9 -9 -8 -8 -8 -7 -6 ------------ Run | Scr Mat Min Mat Min Exi Min Mat Gar Fac Fac Used RIF Installer 1 | . . . . . . . . 1 . . Robots Hacked 2 | . . . . . . . . . 2 . Non-combat 2 | . . . . . . . . . 2 . Combat . | . . . . . . . . . . . Robot Hacks Applied 7 | . . . . . . . . . 7 . parse_system 1 | . . . . . . . . . 1 . purge_threat 3 | . . . . . . . . . 3 . disarm_traps 1 | . . . . . . . . . 1 . recall_investigation 2 | . . . . . . . . . 2 . Relay Couplers Released 13 | . . . . . . . . 13 . . Machine Destruction 13 | . . . . . . . . 13 . . Attached 2 | . . . . . . . . . 2 . Robots Rewired . | . . . . . . . . . . . Allies Hacked . | . . . . . . . . . . . Hacks Repelled . | . . . . . . . . . . . Allies | -11 -10 -10 -9 -9 -9 -8 -8 -8 -7 -6 -------- Run | Scr Mat Min Mat Min Exi Min Mat Gar Fac Fac Total Allies 2 | . . . . 2 . . . . . . Largest Group 2 | . . . . 2 2 . . . . . Highest-Rated Group 45 | . . . . 45 45 . . . . . Highest-Rated Ally 31 | . . . . 31 31 . . . . . Total Orders . | . . . . . . . . . . . Ally Attacks 6 | . . . . 6 . . . . . . Total Damage 61 | . . . . 61 . . . . . . Kills . | . . . . . . . . . . . Allies Corrupted . | . . . . . . . . . . . Allies Melted . | . . . . . . . . . . . Intel | -11 -10 -10 -9 -9 -9 -8 -8 -8 -7 -6 ------- Run | Scr Mat Min Mat Min Exi Min Mat Gar Fac Fac Robot Analysis Total 7 | . 3 . 4 . . . . . . . Derelict Logs Recovered 1 | . . 1 . . . . . . . . Drone Launches . | . . . . . . . . . . . Drone Recoveries . | . . . . . . . . . . . Exploration | -11 -10 -10 -9 -9 -9 -8 -8 -8 -7 -6 ------------- Run | Scr Mat Min Mat Min Exi Min Mat Gar Fac Fac Turns Passed 6649 | 62 487 523 1710 256 430 479 363 1218 1121 . Spaces Moved 3984 | 44 169 235 948 177 388 354 213 741 715 . Core 11 | 11 . . . . . . . . . . Treads 485 | . . 133 352 . . . . . . . Legs 304 | 33 169 102 . . . . . . . . Wheels 3184 | . . . 596 177 388 354 213 741 715 . Hover . | . . . . . . . . . . . Flight . | . . . . . . . . . . . Fastest Speed 50 | 50 120 160 110 110 110 110 110 120 120 . Average Speed 131 | 111 167 176 143 110 110 110 122 127 126 . Slowest Speed 240 | 150 180 240 200 110 110 110 130 130 130 . Overloaded Moves . | . . . . . . . . . . . Propulsion Burnouts . | . . . . . . . . . . . Robots Hopped . | . . . . . . . . . . . Cave-ins Triggered . | . . . . . . . . . . . Exploration Rate (%) 47 | 4 38 43 75 56 88 68 16 70 18 . Regions Visited 10 Branch Regions 4 Pre-discovered Areas 2 | . . 1 . . 1 . . . . . Known Exits Taken 1 | . . . . . . . 1 . . . Unknown Exits Taken 8 | 1 1 1 1 1 1 1 . . 1 . Scrap Searched 2 | . . . . 1 . 1 . . . . Spaces Dug . | . . . . . . . . . . . Terrain Destroyed 19 | . . . . . . . 4 13 2 . Melee . | . . . . . . . . . . . Projectile 6 | . . . . . . . 4 . 2 . AOE 13 | . . . . . . . . 13 . . Terrain Rammed . | . . . . . . . . . . . Walls Destroyed . | . . . . . . . . . . . Machines Disabled . | . . . . . . . . . . . Actions | -11 -10 -10 -9 -9 -9 -8 -8 -8 -7 -6 --------- Run | Scr Mat Min Mat Min Exi Min Mat Gar Fac Fac Total 4865 | 54 263 281 1181 232 390 424 286 897 857 . Wait 259 | . 26 5 83 43 . 48 7 7 40 . Move 3974 | 43 168 234 947 176 387 353 213 739 714 . Hop . | . . . . . . . . . . . Pick Up 71 | 3 4 2 18 3 . 1 9 20 11 . Fast Attach 43 | 7 3 1 14 . 1 . 8 3 6 . Attach 24 | . 1 5 . . . . 3 7 8 . Detach 15 | 1 1 . 8 . . . 2 1 2 . Swap 29 | . 3 . 6 2 1 . 3 2 12 . Drop 61 | . 1 1 21 4 1 2 12 5 14 . Fire 324 | . 55 33 78 4 . 20 29 73 32 . Melee 8 | . . . . . . . . . 8 . Ram 1 | . . . 1 . . . . . . . Kick 1 | . 1 . . . . . . . . . Crush 5 | . . . 5 . . . . . . . Escape Stasis 48 | . . . . . . . . 40 8 . Rewire . | . . . . . . . . . . . Trap 2 | . . . . . . . . . 2 . Miscellaneous . | . . . . . . . . . . . Route ------- -11/Scrapyard -10/Materials (discovered 3 exits: *Mat x2 / [*Min]) -10/Mines (discovered 2 exits: *Mat x2) -9/Materials (discovered 4 exits: *Mat x2 / [*Min] / [*Sto]) -9/Mines (discovered 2 exits: *Mat / *Exi) -9/Exiles (discovered 2 exits: [*Min x2]) -8/Mines -8/Materials -8/Garrison (discovered 3 exits: *Fac x3) -7/Factory (discovered 3 exits: [*Fac x2] / [*Low]) -6/Factory History --------- Turn | Location | Event 13 | -11/Scrapyard | Discovered new exit (range 14) 63 | -11/Scrapyard | Entered Materials 269 | -10/Materials | Discovered new exit (range 16) 301 | -10/Materials | Build established: Mutant 436 | -10/Materials | Discovered new exit (range 14) 436 | -10/Materials | Discovered new exit (range 14) 532 | -10/Materials | Central database locked down 550 | -10/Materials | Entered Mines 613 | -10/Mines | Discovered new exit (range 3) 705 | -10/Mines | Lost 3 parts (1p1n1w) 807 | -10/Mines | Discovered new exit (range 3) 847 | -10/Mines | Core integrity fell below 50% 880 | -10/Mines | Lost 3 parts (1n2w) 976 | -10/Mines | Assembled infested the area 1073 | -10/Mines | Entered Materials 1073 | -9/Materials | Evolved 2 slots: Utility x1, Weapon x1 1442 | -9/Materials | Build established: Gunner 1641 | -9/Materials | Destroyed 8 combat bots 1743 | -9/Materials | Discovered new exit (range 7) 1852 | -9/Materials | Discovered new exit (range 6) 2475 | -9/Materials | Discovered new exit (range 16) 2740 | -9/Materials | Discovered new exit (range 16) 2783 | -9/Materials | Entered Mines 2792 | -9/Mines | Met a Derelict bent on vengeance 2825 | -9/Mines | Found a damaged Exp. Sensor Array with a note attached 2828 | -9/Mines | Found Prototype Device 2904 | -9/Mines | Discovered new exit (range 5) 2991 | -9/Mines | Deemed a non-threat by the Exiles lab entrance 2991 | -9/Mines | Discovered new exit (range 5) 3039 | -9/Mines | Entered Exiles 3039 | -9/Exiles | Accompanied by 2 allies 3057 | -9/Exiles | Discovered new exit (range 15) 3067 | -9/Exiles | Met 8R-AWN 3069 | -9/Exiles | Led the pair of lost Derelicts to a safe place 3082 | -9/Exiles | Met EX-HEX 3133 | -9/Exiles | Met EX-DEC 3140 | -9/Exiles | Learned location of Zion (-6) 3157 | -9/Exiles | Met EX-BIN 3177 | -9/Exiles | Aligned with FarCom system 3178 | -9/Exiles | Given EX-Vault access code 3207 | -9/Exiles | Opened EX-Vault 3215 | -9/Exiles | Found Gui. Plasma Cannon 3241 | -9/Exiles | Warned to stay clear of 0b10 Research branches 3307 | -9/Exiles | Visited The Gauntlet 3457 | -9/Exiles | Discovered new exit (range 14) 3469 | -9/Exiles | Left Exiles lab with Gui. Plasma Cannon 3469 | -9/Exiles | Entered Mines 3502 | -8/Mines | Build established: Mutant 3835 | -8/Mines | Core integrity fell below 50% 3940 | -8/Mines | Discovered new exit (range 7) 3948 | -8/Mines | Entered Materials 3948 | -8/Materials | Evolved 2 slots: Utility x2 4229 | -8/Materials | System corruption reached 10% 4311 | -8/Materials | Identified exit to Garrison 4311 | -8/Materials | Entered Garrison 4346 | -8/Garrison | Triggered checkpoint 4371 | -8/Garrison | Garrison Relay disabled 4492 | -8/Garrison | Triggered checkpoint 4557 | -8/Garrison | Discovered new exit (range 15) 4648 | -8/Garrison | Triggered checkpoint 4710 | -8/Garrison | Discovered new exit (range 8) 4749 | -8/Garrison | Build established: Hauler-Skirmisher 4768 | -8/Garrison | Triggered checkpoint 4845 | -8/Garrison | Discovered new exit (range 10) 4867 | -8/Garrison | Installed Relay Interface Framework 4918 | -8/Garrison | Triggered checkpoint 5332 | -8/Garrison | Triggered checkpoint 5381 | -8/Garrison | Garrison Relay disabled 5445 | -8/Garrison | Build established: Bothacker-Skirmisher 5529 | -8/Garrison | Entered Factory 5529 | -7/Factory | Evolved 2 slots: Utility x1, Weapon x1 5751 | -7/Factory | Lost 3 parts (1n2w) 6206 | -7/Factory | Discovered new exit (range 15) 6418 | -7/Factory | Discovered new exit (range 11) 6581 | -7/Factory | Discovered new exit (range 12) 6650 | -7/Factory | Entered another Factory area 6650 | -6/Factory | Evolved 2 slots: Utility x2 6650 | -6/Factory | Self-destructed Last Messages --------------- Field strength at 30. Field strength at 20. Field strength at 10. Stasis field depleted. R-06 Scavenger collects Imp. Light Armor Plating. System corrupted: Hvy. Ion Cannon failed to cycle. P-60 Hacker destroyed. Dropped Electrolaser. Acquired Shock Rifle. Dropped Arc Projector. Acquired Shock Rifle. EXIT=FOUND Imp. Heat Sink fried. Y-54 Guardian destroyed. Acquired 65 matter. R-06 Scavenger collects Lgt. Treads. PARAMETERS=UTILITY_2 LOCATION=UNKNOWN GOAL=ESCAPE Receiving FarCom transmissions... Map ----- +----------------------------------------------------+ | ?????????????????????????????????????????? | | ?????????????????????????????????????????? | | ?????????????????????????????????????????? | | ?????????????????????????????????????????? | | ?????????????????????????????????????????? | | ?????????????????????????????????????????? | | ?????????????????????????????????????????? | | ?????????????????????????????????????????? | | ?????????????????????????????????????????? | | ?????????????????????????????????????????? | | ?????????????????????????????????????????? | | ?????????????????????????????????????????? | | ?????????????????????????????????????????? | | ?????????????????????????????????????????? | | ?????????????????????????????????????????? | | ?????????????????????????????????????????? | | ?????????????????????????????????????????? | | ?????????????????????????????????????????? | | ?????????????????????????????????????????? | | ?????????????????????????????????????????? | | ????????????????????????????? ??????????? | | ?????????????????????????? ?????????? | | ??????????????########## ?????????? | | ??????????????# ????????? | | ??????????????# ????????? | | ??????????????# @ ????????? | | ??????????????# ????????? | | ??????????????# ????????? | | ??????????????####+############ ?????????? | | ?????????????????????????????????????????? | | ?????????????????????????????????????????? | | ?????????????????????????????????????????? | | ?????????????????????????????????????????? | | ?????????????????????????????????????????? | | ?????????????????????????????????????????? | | ?????????????????????????????????????????? | | ?????????????????????????????????????????? | | ?????????????????????????????????????????? | | ?????????????????????????????????????????? | | ?????????????????????????????????????????? | | ?????????????????????????????????????????? | | ?????????????????????????????????????????? | | ?????????????????????????????????????????? | | ?????????????????????????????????????????? | | ?????????????????????????????????????????? | | ?????????????????????????????????????????? | | ?????????????????????????????????????????? | | ?????????????????????????????????????????? | | ?????????????????????????????????????????? | | ?????????????????????????????????????????? | +----------------------------------------------------+ Best States ------------- Heat Dissipation 53 Coolant Potential 65 Energy Generation 14 Energy Capacity 280 Matter Stores 300 Matter Capacity 300 Sight Range 16 Terrain Scan Range 20 Terrain Scan Density 210 Armor Coverage 225 Evasion (%) 40 Targeting Accuracy 6 Recoil Reduction 2 Relay Coupler Types 11 Relay Coupler Value 1 Item Schematics ----------------- None Robot Schematics ------------------ None Fabricated ------------ Nothing Alien Tech Used ----------------- None Achievements -------------- None Challenges ------------ None Game ------ Seed WarpStasisExpander Manual? 0 Play Time 00:57:34 Cumulative 234.9 hours Start 2020.09.12 @ 09:36:41 End 2020.09.12 @ 10:34:47 Sessions 1 Manual Loads 0 Difficulty Rogue Special Mode None Game No. 250 Rogue 250 Adventurer 0 Explorer 0 Win Type - Total 12 Types 8/0/3/1/0/0/0/0/0 Lore% 76 Gallery% 87 Achievement% 67 Wizard Run 0 Options --------- ASCII 0 Keyboard 1 Movement Numpad Keybinds 0 Fullscreen 1 Font 18/SmallcapsGlow Map View 76x50 Tactical HUD 1 Map Filters NONE Filters NONE Steam 1 RUN: e1bfba92-dcb6-4f0d-9a04-80fdd390279b